[Event "56th Biel Festival MTO 2023"]
[White "Materia,Marco"]
[Black "Huston,Gus"]
[Site "Biel"]
[Round "7.15"]
[Annotator "ChessBase"]
[Result "0-1"]
[Date "2023.07.25"]
[WhiteElo "2436"]
[BlackElo "2341"]
[PlyCount "112"]
[TimeControl "60"]

1. d4 {[%emt 0:0:0]} Nf6 {[%emt 0:0:0]} 2. c4 {[%emt 0:0:0]} e6 {[%emt 0:0:0]} 3. Nf3 {[%emt 0:0:0]} d5 {[%emt 0:0:0]} 4. Nc3 {[%emt 0:0:0]} c6 {[%emt 0:0:0]} 5. Bg5 {[%emt 0:0:0]} Nbd7 {[%emt 0:0:0]} 6. e3 {[%emt 0:0:0]} Be7 {[%emt 0:0:0]} 7. Qc2 {[%emt 0:0:0]} O-O {[%emt 0:0:0]} 8. a3 {[%emt 0:0:0]} b6 {[%emt 0:0:0]} 9. cxd5 {[%emt 0:2:55]} cxd5 {[%emt 0:5:35]} 10. Bd3 {[%emt 0:2:54]} Bb7 {[%emt 0:0:18]} 11. O-O {[%emt 0:5:31]} h6 {[%emt 0:1:10]} 12. Bh4 {[%emt 0:0:47]} Nh5 {[%emt 0:1:30]} 13. Bxe7 {[%emt 0:0:40]} Qxe7 {[%emt 0:0:2]} 14. Rac1 {[%emt 0:2:46]} Rfc8 {[%emt 0:0:28]} 15. Qe2 {[%emt 0:7:27]} a6 {[%emt 0:5:36]} 16. Rc2 {[%emt 0:23:58]} Nhf6 {[%emt 0:0:35]} 17. Rfc1 {[%emt 0:0:36]} b5 {[%emt 0:2:44]} 18. a4 {[%emt 0:7:29]} b4 {[%emt 0:1:3]} 19. Nb1 {[%emt 0:0:11]} Qd8 {[%emt 0:3:52]} 20. Nbd2 {[%emt 0:1:50]} Qa5 {[%emt 0:10:12]} 21. Qd1 {[%emt 0:2:3]} Ne8 {[%emt 0:0:38]} 22. Rxc8 {[%emt 0:15:1]} Rxc8 {[%emt 0:1:11]} 23. Rxc8 {[%emt 0:0:10]} Bxc8 {[%emt 0:0:1]} 24. Qc2 {[%emt 0:1:40]} Bb7 {[%emt 0:1:6]} 25. Kf1 {[%emt 0:1:29]} Nd6 {[%emt 0:11:49]} 26. Ne1 {[%emt 0:3:14]} Qb6 {[%emt 0:16:45]} 27. Nb3 {[%emt 0:4:12]} a5 {[%emt 0:0:21]} 28. Nc5 {[%emt 0:1:9]} Bc6 {[%emt 0:0:20]} 29. b3 {[%emt 0:2:21]} Nb7 {[%emt 0:1:12]} 30. Nxb7 {[%emt 0:1:53]} Bxb7 {[%emt 0:1:9]} 31. Bb5 {[%emt 0:1:17]} Ba6 {[%emt 0:1:5]} 32. Bxa6 {[%emt 0:0:10]} Qxa6+ {[%emt 0:0:2]} 33. Nd3 {[%emt 0:0:7]} e5 {[%emt 0:1:36]} 34. Kg1 {[%emt 0:3:19]} exd4 {[%emt 0:1:0]} 35. exd4 {[%emt 0:0:2]} Qg6 {[%emt 0:10:51]} 36. f3 {[%emt 0:1:17]} Nf8 {[%emt 0:3:57]} 37. Qd1 {[%emt 0:4:59]} Qg5 {[%emt 0:2:38]} 38. Qc1 {[%emt 0:0:50]} Ne6 {[%emt 0:1:23]} 39. f4 {[%emt 0:5:22]} Qf6 {[%emt 0:10:18]} 40. Ne5 {[%emt 0:0:50]} Nxf4 {[%emt 0:6:54]} 41. Qc8+ {[%emt 0:0:0]} Kh7 {[%emt 0:0:0]} 42. Qc2+ {[%emt 0:0:0]} g6 {[%emt 0:0:0]} 43. Qf2 {[%emt 0:0:0]} g5 {[%emt 0:0:0]} 44. h3 {[%emt 0:0:41]} Kg7 {[%emt 0:0:0]} 45. Kh2 {[%emt 0:5:9]} h5 {[%emt 0:4:28]} 46. Qf3 {[%emt 0:4:26]} h4 {[%emt 0:2:1]} 47. Qe3 {[%emt 0:4:11]} Qe6 {[%emt 0:3:40]} 48. Qc1 {[%emt 0:1:58]} Qf5 {[%emt 0:0:29]} 49. Qf1 {[%emt 0:1:21]} Qc2 {[%emt 0:1:57]} 50. Qf3 {[%emt 0:0:39]} f6 {[%emt 0:0:37]} 51. Nd7 {[%emt 0:8:27]} Qc7 {[%emt 0:0:49]} 52. Nc5 {[%emt 0:0:45]} Ne6+ {[%emt 0:0:19]} 53. Kh1 {[%emt 0:0:10]} Nxc5 {[%emt 0:0:11]} 54. dxc5 {[%emt 0:0:1]} Qxc5 {[%emt 0:0:8]} 55. Qf5 {[%emt 0:0:9]} Qc1+ {[%emt 0:0:9]} 56. Kh2 {[%emt 0:0:3]} Qf4+ {[%emt 0:0:16]} 0-1

[Event "56th Biel Festival MTO 2023"]
[White "Rohith Krishna S"]
[Black "Rosen,Eric"]
[Site "Biel"]
[Round "7.16"]
[Annotator "ChessBase"]
[Result "1/2-1/2"]
[Date "2023.07.25"]
[WhiteElo "2429"]
[BlackElo "2344"]
[PlyCount "132"]
[TimeControl "60"]

1. d4 {[%emt 0:0:0]} d5 {[%emt 0:0:0]} 2. c4 {[%emt 0:0:0]} e6 {[%emt 0:0:0]} 3. Nc3 {[%emt 0:0:0]} Nf6 {[%emt 0:0:0]} 4. Bg5 {[%emt 0:0:0]} c6 {[%emt 0:0:0]} 5. e3 {[%emt 0:0:0]} Nbd7 {[%emt 0:0:0]} 6. cxd5 {[%emt 0:0:59]} exd5 {[%emt 0:0:0]} 7. Bd3 {[%emt 0:0:33]} Be7 {[%emt 0:0:0]} 8. Qc2 {[%emt 0:0:29]} Nh5 {[%emt 0:0:0]} 9. Bxe7 {[%emt 0:1:6]} Qxe7 {[%emt 0:0:0]} 10. Nge2 {[%emt 0:0:21]} Nb6 {[%emt 0:0:0]} 11. O-O-O {[%emt 0:5:0]} Be6 {[%emt 0:0:0]} 12. h3 {[%emt 0:2:35]} O-O-O {[%emt 0:0:4]} 13. g4 {[%emt 0:4:54]} Nf6 {[%emt 0:0:37]} 14. f3 {[%emt 0:3:0]} Kb8 {[%emt 0:1:21]} 15. Kb1 {[%emt 0:0:12]} h5 {[%emt 0:4:0]} 16. g5 {[%emt 0:14:6]} Ne8 {[%emt 0:2:38]} 17. h4 {[%emt 0:0:13]} Nd6 {[%emt 0:5:43]} 18. e4 {[%emt 0:8:9]} Ndc4 {[%emt 0:7:26]} 19. Qc1 {[%emt 0:0:53]} dxe4 {[%emt 0:3:27]} 20. fxe4 {[%emt 0:0:11]} Bg4 {[%emt 0:1:32]} 21. Ka1 {[%emt 0:4:40]} c5 {[%emt 0:9:45]} 22. Nb5 {[%emt 0:9:38]} a6 {[%emt 0:4:50]} 23. Bxc4 {[%emt 0:7:17]} Nxc4 {[%emt 0:6:31]} 24. Qf4+ {[%emt 0:5:32]} Ka8 {[%emt 0:1:10]} 25. Nbc3 {[%emt 0:5:53]} cxd4 {[%emt 0:2:36]} 26. Rxd4 {[%emt 0:0:7]} Qb4 {[%emt 0:4:24]} 27. Qc1 {[%emt 0:0:47]} Rxd4 {[%emt 0:6:19]} 28. Nxd4 {[%emt 0:0:5]} Nxb2 {[%emt 0:0:32]} 29. Qxb2 {[%emt 0:4:23]} Qxd4 {[%emt 0:0:5]} 30. Rb1 {[%emt 0:0:6]} Rb8 {[%emt 0:5:27]} 31. Nd5 {[%emt 0:0:17]} Qxb2+ {[%emt 0:1:59]} 32. Kxb2 {[%emt 0:0:6]} Ka7 {[%emt 0:0:51]} 33. Rf1 {[%emt 0:0:30]} Be6 {[%emt 0:1:39]} 34. Nf4 {[%emt 0:0:6]} Bg4 {[%emt 0:7:17]} 35. Nd5 {[%emt 0:0:8]} Re8 {[%emt 0:3:12]} 36. Rf4 {[%emt 0:9:10]} Be6 {[%emt 0:12:16]} 37. Nc7 {[%emt 0:0:15]} Re7 {[%emt 0:1:9]} 38. Nxe6 {[%emt 0:0:16]} Rxe6 {[%emt 0:0:41]} 39. Rxf7 {[%emt 0:0:6]} Rxe4 {[%emt 0:0:4]} 40. Rxg7 {[%emt 0:0:5]} Rxh4 {[%emt 0:0:3]} 41. Rh7 {[%emt 0:30:25]} Rh2+ {[%emt 0:30:38]} 42. Kb3 {[%emt 0:0:47]} Rh3+ {[%emt 0:1:32]} 43. Kb2 {[%emt 0:0:6]} h4 {[%emt 0:0:10]} 44. g6 {[%emt 0:0:13]} Rg3 {[%emt 0:0:15]} 45. Rxh4 {[%emt 0:0:8]} Rxg6 {[%emt 0:0:3]} 46. Rh7 {[%emt 0:1:43]} Rb6+ {[%emt 0:0:8]} 47. Ka1 {[%emt 0:2:9]} a5 {[%emt 0:0:30]} 48. a3 {[%emt 0:0:7]} Rb3 {[%emt 0:0:20]} 49. Ka2 {[%emt 0:0:5]} Rd3 {[%emt 0:0:6]} 50. Rh6 {[%emt 0:0:17]} b6 {[%emt 0:0:2]} 51. a4 {[%emt 0:1:35]} Kb7 {[%emt 0:0:5]} 52. Kb2 {[%emt 0:0:4]} Kc7 {[%emt 0:0:6]} 53. Rg6 {[%emt 0:0:5]} Rd6 {[%emt 0:0:10]} 54. Rg5 {[%emt 0:2:6]} Kc6 {[%emt 0:0:18]} 55. Kc3 {[%emt 0:0:5]} Rd5 {[%emt 0:0:39]} 56. Rg6+ {[%emt 0:0:59]} Kc5 {[%emt 0:0:6]} 57. Rh6 {[%emt 0:1:19]} Rg5 {[%emt 0:0:6]} 58. Rh3 {[%emt 0:0:7]} Re5 {[%emt 0:0:44]} 59. Rf3 {[%emt 0:1:16]} Kd5 {[%emt 0:1:12]} 60. Rh3 {[%emt 0:0:8]} Rg5 {[%emt 0:0:16]} 61. Rd3+ {[%emt 0:0:31]} Kc5 {[%emt 0:1:16]} 62. Rh3 {[%emt 0:0:6]} Rg1 {[%emt 0:0:39]} 63. Rh5+ {[%emt 0:0:12]} Kc6 {[%emt 0:0:2]} 64. Rh6+ {[%emt 0:0:10]} Kb7 {[%emt 0:0:3]} 65. Rh7+ {[%emt 0:0:6]} Ka6 {[%emt 0:0:4]} 66. Kb3 {[%emt 0:0:4]} Rg3+ {[%emt 0:0:13]} 1/2-1/2

[Event "56th Biel Festival MTO 2023"]
[White "Huang,Qian"]
[Black "Eidelman,Gabriel"]
[Site "Biel"]
[Round "7.17"]
[Annotator "ChessBase"]
[Result "1/2-1/2"]
[Date "2023.07.25"]
[WhiteElo "2422"]
[BlackElo "2204"]
[PlyCount "32"]
[TimeControl "60"]

1. c4 {[%emt 0:0:0]} e6 {[%emt 0:0:0]} 2. g3 {[%emt 0:0:0]} d5 {[%emt 0:0:0]} 3. Bg2 {[%emt 0:0:0]} Nf6 {[%emt 0:0:0]} 4. Nf3 {[%emt 0:0:0]} d4 {[%emt 0:0:0]} 5. d3 {[%emt 0:0:0]} Bb4+ {[%emt 0:0:0]} 6. Bd2 {[%emt 0:0:0]} a5 {[%emt 0:0:0]} 7. O-O {[%emt 0:0:0]} Nc6 {[%emt 0:0:0]} 8. e3 {[%emt 0:0:0]} O-O {[%emt 0:0:0]} 9. exd4 {[%emt 0:0:0]} Nxd4 {[%emt 0:0:0]} 10. Nc3 {[%emt 0:0:0]} Nxf3+ {[%emt 0:0:0]} 11. Qxf3 {[%emt 0:0:0]} e5 {[%emt 0:0:0]} 12. Bg5 {[%emt 0:6:32]} h6 {[%emt 0:9:21]} 13. Bxf6 {[%emt 0:0:36]} Qxf6 {[%emt 0:0:6]} 14. Qxf6 {[%emt 0:1:18]} gxf6 {[%emt 0:0:6]} 15. Nd5 {[%emt 0:1:17]} c6 {[%emt 0:0:9]} 16. Nb6 {[%emt 0:29:29]} Ra6 {[%emt 0:6:45]} 1/2-1/2

[Event "56th Biel Festival MTO 2023"]
[White "Shlyakhtenko,Robert"]
[Black "Wessman,Richard"]
[Site "Biel"]
[Round "7.18"]
[Annotator "ChessBase"]
[Result "1-0"]
[Date "2023.07.25"]
[WhiteElo "2401"]
[BlackElo "2410"]
[PlyCount "79"]
[TimeControl "60"]

1. d4 {[%emt 0:0:0]} d5 {[%emt 0:0:0]} 2. c4 {[%emt 0:0:0]} c6 {[%emt 0:0:0]} 3. Nf3 {[%emt 0:0:0]} Nf6 {[%emt 0:0:0]} 4. Nc3 {[%emt 0:0:0]} dxc4 {[%emt 0:0:0]} 5. e4 {[%emt 0:0:0]} b5 {[%emt 0:0:0]} 6. Be2 {[%emt 0:0:0]} e6 {[%emt 0:0:0]} 7. a4 {[%emt 0:0:0]} b4 {[%emt 0:1:29]} 8. e5 {[%emt 0:0:0]} bxc3 {[%emt 0:1:25]} 9. exf6 {[%emt 0:0:0]} cxb2 {[%emt 0:0:18]} 10. fxg7 {[%emt 0:0:0]} Bxg7 {[%emt 0:0:19]} 11. Bxb2 {[%emt 0:0:0]} Qa5+ {[%emt 0:1:35]} 12. Nd2 {[%emt 0:0:0]} Ba6 {[%emt 0:6:43]} 13. Ra3 {[%emt 0:0:0]} Bf8 {[%emt 0:21:26]} 14. O-O {[%emt 0:6:56]} Rg8 {[%emt 0:10:26]} 15. Rc3 {[%emt 0:23:14]} Nd7 {[%emt 0:9:26]} 16. Nxc4 {[%emt 0:1:11]} Bxc4 {[%emt 0:2:12]} 17. Rxc4 {[%emt 0:0:59]} Qd5 {[%emt 0:13:21]} 18. g3 {[%emt 0:0:23]} Nb6 {[%emt 0:0:25]} 19. Rxc6 {[%emt 0:0:57]} Qxc6 {[%emt 0:3:34]} 20. Bb5 {[%emt 0:0:8]} Qxb5 {[%emt 0:0:9]} 21. axb5 {[%emt 0:0:6]} Rg5 {[%emt 0:0:25]} 22. Qf3 {[%emt 0:2:48]} Rc8 {[%emt 0:1:5]} 23. Ra1 {[%emt 0:2:9]} Rxb5 {[%emt 0:3:35]} 24. Rxa7 {[%emt 0:0:13]} Nd7 {[%emt 0:0:8]} 25. Ba3 {[%emt 0:3:57]} Bxa3 {[%emt 0:3:25]} 26. Ra8 {[%emt 0:1:6]} Rxa8 {[%emt 0:8:10]} 27. Qxa8+ {[%emt 0:0:8]} Rb8 {[%emt 0:0:8]} 28. Qxa3 {[%emt 0:0:8]} Nf6 {[%emt 0:4:17]} 29. d5 {[%emt 0:5:44]} Nxd5 {[%emt 0:1:50]} 30. Qa1 {[%emt 0:0:7]} Rd8 {[%emt 0:5:34]} 31. Qh8+ {[%emt 0:0:9]} Ke7 {[%emt 0:0:2]} 32. Qxh7 {[%emt 0:0:10]} Nf6 {[%emt 0:0:2]} 33. Qh4 {[%emt 0:0:13]} e5 {[%emt 0:0:24]} 34. Qb4+ {[%emt 0:1:33]} Ke6 {[%emt 0:0:10]} 35. Kg2 {[%emt 0:0:22]} Rd4 {[%emt 0:0:37]} 36. Qb3+ {[%emt 0:4:16]} Nd5 {[%emt 0:0:43]} 37. h4 {[%emt 0:1:16]} Kf5 {[%emt 0:1:46]} 38. Qf3+ {[%emt 0:0:33]} Kg6 {[%emt 0:0:10]} 39. h5+ {[%emt 0:0:25]} Kg7 {[%emt 0:0:11]} 40. Qf5 {[%emt 0:0:11]} 1-0

[Event "56th Biel Festival MTO 2023"]
[White "Harikrishnan.A.Ra"]
[Black "Coles,Ruben"]
[Site "Biel"]
[Round "7.19"]
[Annotator "ChessBase"]
[Result "1-0"]
[Date "2023.07.25"]
[WhiteElo "2406"]
[BlackElo "2167"]
[PlyCount "67"]
[TimeControl "60"]

1. d4 {[%emt 0:0:0]} d5 {[%emt 0:0:0]} 2. c4 {[%emt 0:0:0]} e6 {[%emt 0:0:0]} 3. Nf3 {[%emt 0:0:0]} Nf6 {[%emt 0:0:0]} 4. g3 {[%emt 0:0:0]} Be7 {[%emt 0:0:0]} 5. Bg2 {[%emt 0:0:0]} O-O {[%emt 0:0:0]} 6. O-O {[%emt 0:0:0]} c6 {[%emt 0:0:0]} 7. Nc3 {[%emt 0:0:0]} a5 {[%emt 0:0:0]} 8. Qd3 {[%emt 0:0:0]} b6 {[%emt 0:0:0]} 9. b3 {[%emt 0:0:0]} Ba6 {[%emt 0:0:0]} 10. Rd1 {[%emt 0:2:18]} Nbd7 {[%emt 0:4:47]} 11. a4 {[%emt 0:5:16]} Bb4 {[%emt 0:9:30]} 12. Bb2 {[%emt 0:4:58]} Rc8 {[%emt 0:3:54]} 13. Rac1 {[%emt 0:2:55]} Qe7 {[%emt 0:4:30]} 14. e3 {[%emt 0:14:40]} Rfd8 {[%emt 0:3:45]} 15. Qe2 {[%emt 0:1:33]} c5 {[%emt 0:15:52]} 16. Nb5 {[%emt 0:2:24]} Ne4 {[%emt 0:2:7]} 17. cxd5 {[%emt 0:4:51]} exd5 {[%emt 0:2:55]} 18. dxc5 {[%emt 0:7:23]} Ndxc5 {[%emt 0:2:17]} 19. Nfd4 {[%emt 0:1:54]} g6 {[%emt 0:7:57]} 20. Ba1 {[%emt 0:1:5]} f5 {[%emt 0:7:51]} 21. h4 {[%emt 0:1:49]} Bb7 {[%emt 0:8:14]} 22. Qb2 {[%emt 0:1:57]} Qg7 {[%emt 0:5:45]} 23. Qa2 {[%emt 0:1:12]} Qe7 {[%emt 0:6:26]} 24. Ne2 {[%emt 0:1:24]} Nf6 {[%emt 0:3:50]} 25. Qb2 {[%emt 0:3:19]} Kf7 {[%emt 0:1:47]} 26. Nf4 {[%emt 0:1:52]} Nce4 {[%emt 0:2:26]} 27. Nd3 {[%emt 0:1:11]} Rxc1 {[%emt 0:3:45]} 28. Rxc1 {[%emt 0:0:16]} Rc8 {[%emt 0:1:36]} 29. Rxc8 {[%emt 0:5:41]} Bxc8 {[%emt 0:0:42]} 30. Nxb4 {[%emt 0:0:2]} axb4 {[%emt 0:3:23]} 31. Qd4 {[%emt 0:0:22]} Qe6 {[%emt 0:2:0]} 32. Qxb4 {[%emt 0:3:58]} Nc5 {[%emt 0:0:36]} 33. Qc3 {[%emt 0:1:14]} Bb7 {[%emt 0:0:31]} 34. Nc7 {[%emt 0:1:57]} 1-0

[Event "56th Biel Festival MTO 2023"]
[White "Vasquez Toledo,Cristian"]
[Black "Seul,Georg"]
[Site "Biel"]
[Round "7.20"]
[Annotator "ChessBase"]
[Result "1/2-1/2"]
[Date "2023.07.25"]
[WhiteElo "2233"]
[BlackElo "2376"]
[PlyCount "68"]
[TimeControl "60"]

1. e4 {[%emt 0:0:0]} c6 {[%emt 0:0:0]} 2. d4 {[%emt 0:0:0]} d5 {[%emt 0:0:0]} 3. e5 {[%emt 0:0:0]} c5 {[%emt 0:0:0]} 4. Nf3 {[%emt 0:0:0]} Nc6 {[%emt 0:0:0]} 5. dxc5 {[%emt 0:0:0]} Bg4 {[%emt 0:0:0]} 6. c3 {[%emt 0:0:0]} e6 {[%emt 0:0:0]} 7. Be3 {[%emt 0:0:0]} a6 {[%emt 0:0:0]} 8. Nbd2 {[%emt 0:0:0]} Nxe5 {[%emt 0:0:0]} 9. Qa4+ {[%emt 0:0:0]} Qd7 {[%emt 0:0:0]} 10. Qf4 {[%emt 0:0:0]} Bxf3 {[%emt 0:0:32]} 11. Nxf3 {[%emt 0:0:0]} Ng6 {[%emt 0:15:7]} 12. Qg3 {[%emt 0:1:48]} Nf6 {[%emt 0:21:58]} 13. Bd3 {[%emt 0:4:11]} Rc8 {[%emt 0:10:5]} 14. h4 {[%emt 0:12:18]} Ne4 {[%emt 0:22:12]} 15. Bxe4 {[%emt 0:1:20]} dxe4 {[%emt 0:1:50]} 16. Nd2 {[%emt 0:0:6]} Qd3 {[%emt 0:5:26]} 17. Rd1 {[%emt 0:7:6]} h5 {[%emt 0:5:10]} 18. Nb3 {[%emt 0:1:26]} Qb5 {[%emt 0:0:48]} 19. Rd4 {[%emt 0:5:48]} Be7 {[%emt 0:0:5]} 20. Rb4 {[%emt 0:19:53]} Qd3 {[%emt 0:0:16]} 21. Nc1 {[%emt 0:0:14]} Qd5 {[%emt 0:0:49]} 22. Ke2 {[%emt 0:9:3]} O-O {[%emt 0:7:14]} 23. Rd1 {[%emt 0:1:6]} Qf5 {[%emt 0:0:9]} 24. Rxb7 {[%emt 0:5:56]} Bxh4 {[%emt 0:0:45]} 25. Qh2 {[%emt 0:6:9]} Rxc5 {[%emt 0:1:37]} 26. Nb3 {[%emt 0:4:22]} Qg4+ {[%emt 0:1:41]} 27. Ke1 {[%emt 0:1:21]} Rd5 {[%emt 0:0:37]} 28. Rxd5 {[%emt 0:1:23]} exd5 {[%emt 0:0:4]} 29. Nc5 {[%emt 0:5:18]} Qc8 {[%emt 0:3:19]} 30. Qc7 {[%emt 0:4:15]} Qg4 {[%emt 0:0:32]} 31. Nd7 {[%emt 0:3:13]} Ra8 {[%emt 0:2:13]} 32. Nb6 {[%emt 0:3:25]} Rf8 {[%emt 0:0:9]} 33. Nd7 {[%emt 0:0:43]} Ra8 {[%emt 0:0:27]} 34. Nb6 {[%emt 0:2:50]} Rf8 {[%emt 0:0:3]} 1/2-1/2

[Event "56th Biel Festival MTO 2023"]
[White "Karthik Rajaa"]
[Black "Morawietz,Dieter"]
[Site "Biel"]
[Round "7.21"]
[Annotator "ChessBase"]
[Result "1/2-1/2"]
[Date "2023.07.26"]
[WhiteElo "2276"]
[BlackElo "2396"]
[PlyCount "137"]
[TimeControl "60"]

1. d4 {[%emt 0:0:0]} Nf6 {[%emt 0:0:0]} 2. c4 {[%emt 0:0:0]} e6 {[%emt 0:0:0]} 3. Nc3 {[%emt 0:0:0]} Bb4 {[%emt 0:0:0]} 4. e3 {[%emt 0:0:0]} b6 {[%emt 0:0:0]} 5. Nge2 {[%emt 0:0:0]} Ba6 {[%emt 0:0:0]} 6. a3 {[%emt 0:0:0]} Bxc3+ {[%emt 0:0:0]} 7. Nxc3 {[%emt 0:0:0]} d5 {[%emt 0:0:0]} 8. b3 {[%emt 0:0:0]} Nc6 {[%emt 0:0:0]} 9. a4 {[%emt 0:0:0]} O-O {[%emt 0:0:0]} 10. Be2 {[%emt 0:1:30]} Re8 {[%emt 0:0:45]} 11. a5 {[%emt 0:10:28]} bxa5 {[%emt 0:27:34]} 12. O-O {[%emt 0:5:37]} Rb8 {[%emt 0:2:19]} 13. Re1 {[%emt 0:19:48]} Qe7 {[%emt 0:11:16]} 14. Ra4 {[%emt 0:15:36]} Red8 {[%emt 0:2:13]} 15. Ba3 {[%emt 0:3:47]} Qe8 {[%emt 0:0:10]} 16. Qc2 {[%emt 0:6:35]} Bc8 {[%emt 0:23:30]} 17. cxd5 {[%emt 0:5:49]} exd5 {[%emt 0:0:19]} 18. Bb5 {[%emt 0:5:12]} a6 {[%emt 0:0:36]} 19. Bxc6 {[%emt 0:0:51]} Qxc6 {[%emt 0:0:6]} 20. Bc5 {[%emt 0:2:17]} Re8 {[%emt 0:4:11]} 21. Rxa5 {[%emt 0:1:31]} Re6 {[%emt 0:9:49]} 22. f3 {[%emt 0:6:35]} Qb7 {[%emt 0:2:21]} 23. b4 {[%emt 0:1:24]} Bd7 {[%emt 0:0:5]} 24. Qd3 {[%emt 0:4:53]} Rbe8 {[%emt 0:0:11]} 25. Ra2 {[%emt 0:0:52]} h5 {[%emt 0:1:30]} 26. Rae2 {[%emt 0:1:28]} Bb5 {[%emt 0:2:35]} 27. Nxb5 {[%emt 0:0:5]} Qxb5 {[%emt 0:4:57]} 28. Qxb5 {[%emt 0:0:39]} axb5 {[%emt 0:0:5]} 29. Kf2 {[%emt 0:1:3]} Ra8 {[%emt 0:0:6]} 30. h4 {[%emt 0:4:41]} Ra3 {[%emt 0:0:42]} 31. Rc1 {[%emt 0:1:52]} Nd7 {[%emt 0:2:16]} 32. Rce1 {[%emt 0:0:59]} f5 {[%emt 0:0:8]} 33. Kg3 {[%emt 0:0:20]} Kf7 {[%emt 0:0:18]} 34. Kf4 {[%emt 0:0:36]} g6 {[%emt 0:1:4]} 35. Kg3 {[%emt 0:0:39]} Rea6 {[%emt 0:0:50]} 36. Kh2 {[%emt 0:1:5]} Re6 {[%emt 0:2:10]} 37. Kg3 {[%emt 0:0:28]} Nb8 {[%emt 0:2:29]} 38. Kh2 {[%emt 0:0:28]} Nc6 {[%emt 0:1:10]} 39. e4 {[%emt 0:0:44]} fxe4 {[%emt 0:1:9]} 40. fxe4 {[%emt 0:0:1]} Rxe4 {[%emt 0:0:24]} 41. Rxe4 {[%emt 0:30:2]} dxe4 {[%emt 0:30:8]} 42. Rxe4 {[%emt 0:0:5]} Rd3 {[%emt 0:0:25]} 43. g4 {[%emt 0:0:0]} hxg4 {[%emt 0:0:0]} 44. Rxg4 {[%emt 0:0:0]} Kf6 {[%emt 0:0:0]} 45. Rf4+ {[%emt 0:0:0]} Kg7 {[%emt 0:0:0]} 46. Kg2 {[%emt 0:0:0]} Kh6 {[%emt 0:0:0]} 47. Re4 {[%emt 0:0:0]} Kh5 {[%emt 0:0:0]} 48. Kf2 {[%emt 0:0:0]} Nb8 {[%emt 0:0:0]} 49. Ke2 {[%emt 0:0:0]} Rb3 {[%emt 0:0:0]} 50. d5 {[%emt 0:0:0]} Na6 {[%emt 0:0:0]} 51. Be7 {[%emt 0:0:0]} Kh6 {[%emt 0:1:5]} 52. Kd2 {[%emt 0:0:0]} Rf3 {[%emt 0:3:5]} 53. Re6 {[%emt 0:0:0]} Nb8 {[%emt 0:0:33]} 54. Re5 {[%emt 0:0:0]} Nd7 {[%emt 0:0:34]} 55. Bg5+ {[%emt 0:0:0]} Kh5 {[%emt 0:0:8]} 56. Re7 {[%emt 0:0:0]} Nb6 {[%emt 0:0:3]} 57. Rxc7 {[%emt 0:0:0]} Rf5 {[%emt 0:3:21]} 58. Rc5 {[%emt 0:0:6]} Rxd5+ {[%emt 0:0:7]} 59. Ke3 {[%emt 0:5:53]} Rf5 {[%emt 0:0:19]} 60. Ke4 {[%emt 0:2:23]} Nc4 {[%emt 0:0:10]} 61. Kd4 {[%emt 0:1:45]} Kg4 {[%emt 0:0:33]} 62. Rd5 {[%emt 0:2:3]} Rxd5+ {[%emt 0:2:5]} 63. Kxd5 {[%emt 0:0:2]} Na3 {[%emt 0:0:7]} 64. Kc5 {[%emt 0:0:32]} Kh5 {[%emt 0:0:6]} 65. Bc1 {[%emt 0:0:21]} Nc2 {[%emt 0:0:3]} 66. Bg5 {[%emt 0:0:4]} Na3 {[%emt 0:0:4]} 67. Bc1 {[%emt 0:0:25]} Nc2 {[%emt 0:0:4]} 68. Kxb5 {[%emt 0:0:2]} Nxb4 {[%emt 0:0:6]} 69. Kxb4 {[%emt 0:0:3]} 1/2-1/2

[Event "56th Biel Festival MTO 2023"]
[White "Joly,Julien"]
[Black "Jain Kashish Manoj"]
[Site "Biel"]
[Round "7.22"]
[Annotator "ChessBase"]
[Result "1-0"]
[Date "2023.07.25"]
[WhiteElo "2249"]
[BlackElo "2375"]
[PlyCount "93"]
[TimeControl "60"]

1. d4 {[%emt 0:0:0]} Nf6 {[%emt 0:0:0]} 2. Nf3 {[%emt 0:0:0]} g6 {[%emt 0:0:0]} 3. g3 {[%emt 0:0:0]} Bg7 {[%emt 0:0:0]} 4. Bg2 {[%emt 0:0:0]} O-O {[%emt 0:0:0]} 5. c4 {[%emt 0:0:0]} d6 {[%emt 0:0:0]} 6. O-O {[%emt 0:0:0]} Nc6 {[%emt 0:0:0]} 7. d5 {[%emt 0:0:0]} Na5 {[%emt 0:0:0]} 8. Qa4 {[%emt 0:0:0]} c5 {[%emt 0:0:0]} 9. Bd2 {[%emt 0:0:0]} b6 {[%emt 0:0:0]} 10. Bc3 {[%emt 0:0:0]} Rb8 {[%emt 0:5:26]} 11. Nbd2 {[%emt 0:0:0]} Bd7 {[%emt 0:9:42]} 12. Qc2 {[%emt 0:0:0]} b5 {[%emt 0:1:17]} 13. b3 {[%emt 0:0:0]} e6 {[%emt 0:25:2]} 14. dxe6 {[%emt 0:0:0]} fxe6 {[%emt 0:9:28]} 15. Rad1 {[%emt 0:0:0]} Qc7 {[%emt 0:0:30]} 16. Ng5 {[%emt 0:3:20]} Nc6 {[%emt 0:6:46]} 17. cxb5 {[%emt 0:7:1]} Rxb5 {[%emt 0:2:41]} 18. Bh3 {[%emt 0:3:1]} e5 {[%emt 0:9:12]} 19. Bxd7 {[%emt 0:4:0]} Qxd7 {[%emt 0:0:11]} 20. Qd3 {[%emt 0:12:24]} Nd4 {[%emt 0:6:24]} 21. e3 {[%emt 0:6:15]} e4 {[%emt 0:12:35]} 22. Ndxe4 {[%emt 0:5:7]} Nxe4 {[%emt 0:0:34]} 23. Nxe4 {[%emt 0:1:23]} Nf3+ {[%emt 0:2:12]} 24. Kg2 {[%emt 0:0:14]} c4 {[%emt 0:3:9]} 25. Qxc4+ {[%emt 0:11:44]} d5 {[%emt 0:0:50]} 26. Bxg7 {[%emt 0:10:26]} Nh4+ {[%emt 0:3:19]} 27. Kh1 {[%emt 0:3:30]} Qh3 {[%emt 0:3:19]} 28. Nf6+ {[%emt 0:0:56]} Rxf6 {[%emt 0:0:7]} 29. Qxh4 {[%emt 0:0:11]} Qxh4 {[%emt 0:0:7]} 30. gxh4 {[%emt 0:0:3]} Kxg7 {[%emt 0:0:5]} 31. Kg2 {[%emt 0:4:38]} Ra6 {[%emt 0:1:40]} 32. Rd2 {[%emt 0:0:24]} Kf6 {[%emt 0:0:51]} 33. Rfd1 {[%emt 0:0:44]} Ke6 {[%emt 0:0:20]} 34. Rc1 {[%emt 0:2:46]} h5 {[%emt 0:0:29]} 35. f4 {[%emt 0:2:43]} Rab6 {[%emt 0:1:12]} 36. Rc8 {[%emt 0:5:53]} Kd7 {[%emt 0:0:28]} 37. Rg8 {[%emt 0:0:48]} Ra6 {[%emt 0:0:1]} 38. Kf3 {[%emt 0:0:58]} Ke7 {[%emt 0:0:5]} 39. Rc2 {[%emt 0:2:42]} Kf7 {[%emt 0:0:32]} 40. Rgc8 {[%emt 0:0:12]} Rbb6 {[%emt 0:0:9]} 41. Rd8 {[%emt 0:32:23]} Ke6 {[%emt 0:30:15]} 42. Rd2 {[%emt 0:3:13]} Ra5 {[%emt 0:0:34]} 43. Re8+ {[%emt 0:1:7]} Kf6 {[%emt 0:0:1]} 44. Re5 {[%emt 0:0:22]} Rbb5 {[%emt 0:0:17]} 45. Rg5 {[%emt 0:1:10]} Kf7 {[%emt 0:0:2]} 46. h3 {[%emt 0:0:38]} Kf6 {[%emt 0:0:6]} 47. Rdg2 {[%emt 0:0:13]} 1-0

[Event "56th Biel Festival MTO 2023"]
[White "Ermitsch,Magnus"]
[Black "Haimovich,Tal"]
[Site "Biel"]
[Round "7.23"]
[Annotator "ChessBase"]
[Result "0-1"]
[Date "2023.07.25"]
[WhiteElo "2232"]
[BlackElo "2374"]
[PlyCount "70"]
[TimeControl "60"]

1. e4 {[%emt 0:0:0]} e5 {[%emt 0:0:0]} 2. Nf3 {[%emt 0:0:0]} Nc6 {[%emt 0:0:0]} 3. Bb5 {[%emt 0:0:0]} a6 {[%emt 0:0:0]} 4. Ba4 {[%emt 0:0:0]} Bc5 {[%emt 0:0:0]} 5. O-O {[%emt 0:0:0]} Nge7 {[%emt 0:0:0]} 6. c3 {[%emt 0:0:0]} Ba7 {[%emt 0:0:0]} 7. Re1 {[%emt 0:0:0]} O-O {[%emt 0:0:0]} 8. Bb3 {[%emt 0:3:58]} d6 {[%emt 0:0:0]} 9. d3 {[%emt 0:1:36]} Ng6 {[%emt 0:3:12]} 10. Bg5 {[%emt 0:2:14]} Qe8 {[%emt 0:2:24]} 11. Nbd2 {[%emt 0:2:9]} Kh8 {[%emt 0:5:29]} 12. Be3 {[%emt 0:7:17]} Bxe3 {[%emt 0:7:3]} 13. Rxe3 {[%emt 0:0:33]} Nf4 {[%emt 0:4:42]} 14. d4 {[%emt 0:4:15]} Bg4 {[%emt 0:3:6]} 15. h3 {[%emt 0:1:5]} Bd7 {[%emt 0:3:55]} 16. Nf1 {[%emt 0:2:33]} f6 {[%emt 0:3:34]} 17. Ng3 {[%emt 0:3:18]} Ne7 {[%emt 0:8:9]} 18. Kh2 {[%emt 0:12:58]} Rd8 {[%emt 0:2:47]} 19. Ne2 {[%emt 0:1:7]} g5 {[%emt 0:14:47]} 20. Neg1 {[%emt 0:13:29]} Qh5 {[%emt 0:6:24]} 21. dxe5 {[%emt 0:12:31]} fxe5 {[%emt 0:0:45]} 22. Qf1 {[%emt 0:1:31]} g4 {[%emt 0:3:2]} 23. Ne1 {[%emt 0:0:22]} Rf6 {[%emt 0:5:56]} 24. g3 {[%emt 0:2:43]} Nxh3 {[%emt 0:3:8]} 25. Nxh3 {[%emt 0:0:9]} Rdf8 {[%emt 0:2:34]} 26. Nd3 {[%emt 0:3:8]} Rh6 {[%emt 0:2:7]} 27. Bd1 {[%emt 0:2:1]} Qg6 {[%emt 0:1:21]} 28. Kg1 {[%emt 0:1:38]} Rxh3 {[%emt 0:2:50]} 29. Qg2 {[%emt 0:0:49]} Qg5 {[%emt 0:2:21]} 30. Be2 {[%emt 0:4:11]} Rf6 {[%emt 0:1:41]} 31. Rd1 {[%emt 0:6:53]} Rfh6 {[%emt 0:3:48]} 32. f4 {[%emt 0:0:43]} Qh5 {[%emt 0:0:52]} 33. Nf2 {[%emt 0:2:2]} Rh2 {[%emt 0:0:6]} 34. Qf1 {[%emt 0:0:8]} exf4 {[%emt 0:0:9]} 35. gxf4 {[%emt 0:0:16]} Qh4 {[%emt 0:0:13]} 0-1